bitfinex/quotes_ETHUSD_20260228
["timestamp","ask_amount","ask_price","bid_price","bid_amount"]
[1772317068652,1.80789677,1965.2,1964.6,0.48938115]
[1772317069974,1.67376162,1965.4,1964.6,0.48938115]
[1772317070266,2.94579779,1965.4,1964.6,0.48938115]
[1772317070975,2.94579779,1965.4,1964.7,1.76184004]
[1772317071260,0.53576162,1965.3,1964.6,1.76185695]
[1772317071856,0.53576162,1965.3,1964.7,0.48938115]
[1772317073066,1.8078395,1965.3,1964.8,1.27239413]
[1772317073278,1.8078395,1965.3,1964.7,1.76179169]
[1772317073864,1.8098395,1965.3,1964.7,1.76179169]
[1772317076083,0.53576162,1965.2,1964.7,1.76179169]
[1772317078061,0.002,1965.3,1964.8,0.48938115]
[1772317078277,0.002,1965.3,1964.9,1.8103903]
[1772317078840,0.002,1965.3,1965.0,0.53806092]
[1772317080488,0.50756883,1965.3,1964.8,1.61600641]
[1772317081275,0.002,1965.3,1964.9,0.34363807]
[1772317081981,0.50756883,1965.3,1964.9,0.34363807]
[1772317082888,0.50756883,1965.3,1965.0,1.27226463]
[1772317083456,0.002,1965.3,1965.0,1.6172809]
[1772317085367,0.50556883,1965.2,1964.8,5.08949297]
[1772317085761,0.50556883,1965.2,1964.8,5.43541728]
[1772317087064,0.002,1965.3,1964.9,0.34636641]
[1772317087376,0.002,1965.3,1964.9,0.34736641]
[1772317087599,0.002,1965.2,1964.9,0.34736641]
[1772317088983,0.50756883,1965.2,1964.9,0.001]
[1772317093285,0.002,1965.2,1964.9,0.34993088]
[1772317094066,1e-08,1965.4,1965.0,0.3493413]
[1772317094666,1e-08,1965.4,1965.1,1.27219988]
[1772317095774,0.50556884,1965.4,1964.9,1.27328667]
[1772317096073,0.50556884,1965.4,1964.9,1.27332368]
[1772317096291,0.50556884,1965.4,1965.0,0.35054028]
[1772317096292,1e-08,1965.4,1965.0,0.35054028]
[1772317096900,1e-08,1965.4,1965.1,1.62313115]
[1772317097265,1e-08,1965.4,1965.1,1.27219988]
[1772317097626,1e-08,1965.4,1965.0,1.27221654]
[1772317098102,1e-08,1965.4,1965.0,1.62353514]
[1772317098306,1e-08,1965.4,1965.1,0.3513186]
[1772317098607,0.49586429,1965.4,1964.7,1.27242828]
[1772317098790,1.63286429,1965.4,1964.8,0.35169787]
[1772317098969,1.63286429,1965.4,1964.9,1.62402725]
[1772317099862,0.49586428,1965.3,1964.9,1.62402725]
[1772317100968,1e-08,1965.4,1965.0,0.35245095]
[1772317101771,0.49586429,1965.4,1964.7,1.27240744]
[1772317102204,0.49586429,1965.4,1965.0,0.001]
[1772317102504,0.49586428,1965.2,1965.0,0.001]
[1772317105115,0.49786428,1965.3,1965.0,0.001]
[1772317105295,0.49586428,1965.2,1964.7,1.27340744]
[1772317106501,0.49586428,1965.2,1964.8,0.517201]
[1772317107395,0.49786428,1965.3,1964.8,0.517201]
[1772317107600,0.49586428,1965.2,1964.7,1.27340744]
[1772317107980,0.49586428,1965.2,1964.7,1.79060844]
[1772317108782,0.49586428,1965.1,1964.7,0.001]
[1772317108983,0.49586428,1965.1,1964.5,0.001]
[1772317109805,0.49586428,1965.1,1964.5,1.27358041]
[1772317110207,0.49586428,1965.1,1964.5,0.001]
[1772317110412,0.49586428,1965.1,1964.5,1.79078733]
[1772317110611,1.137,1965.0,1964.6,0.517201]
[1772317110908,1.63286428,1965.0,1964.6,0.517201]
[1772317111108,0.49586428,1965.0,1964.6,0.517201]
[1772317111593,0.49586428,1965.2,1964.6,0.517201]
[1772317112508,0.49586428,1965.2,1964.7,1.78965989]
[1772317112714,0.002,1965.3,1964.8,0.517201]
[1772317114919,0.002,1965.3,1964.9,1.78953038]
[1772317115488,0.49786428,1965.3,1964.8,1.2733428]
[1772317115710,0.49786428,1965.3,1964.8,1.7905438]
[1772317116724,0.002,1965.3,1964.9,0.517201]
[1772317117021,0.002,1965.3,1965.0,1.76401753]
[1772317117511,0.49786428,1965.3,1964.8,0.001]
[1772317117712,0.49786428,1965.3,1964.8,1.79059187]
[1772317118020,0.49786428,1965.3,1964.8,1.27339038]
[1772317118226,0.49786428,1965.3,1964.8,0.001]
[1772317118599,0.49786428,1965.3,1964.7,0.001]
[1772317119426,0.49586428,1965.1,1964.7,0.001]
[1772317121431,0.49586428,1965.2,1964.7,0.001]
[1772317121637,1.63186428,1965.1,1964.7,0.001]
[1772317121930,0.49586428,1965.0,1964.7,0.001]
[1772317125033,1.63286428,1965.0,1964.7,0.001]
[1772317127710,0.49586428,1965.0,1964.7,0.001]
[1772317128645,1.6915894,1965.1,1964.7,0.51785062]
[1772317130043,1.6915894,1965.1,1964.7,1.79027213]
[1772317130837,0.002,1965.1,1964.7,1.27342151]
[1772317131039,0.002,1965.1,1964.8,0.51685062]
[1772317132065,0.002,1965.1,1964.9,1.27232938]
[1772317132427,0.002,1965.2,1965.0,0.51685062]
[1772317132736,0.002,1965.3,1965.0,0.51685062]
[1772317134444,0.002,1965.3,1965.1,1.27219988]
[1772317135753,0.002,1965.3,1964.8,0.51685062]
[1772317135922,0.5545894,1965.3,1964.9,1.78913807]
[1772317136124,0.002,1965.5,1965.0,0.51685062]
[1772317137035,0.002,1965.5,1965.1,1.7890505]
[1772317137247,0.002,1965.5,1965.2,0.51685062]
[1772317137662,0.5545894,1965.5,1965.1,1.27219988]
[1772317137955,0.5545894,1965.5,1965.0,0.51685062]
[1772317138341,0.5545894,1965.5,1965.0,1.78906501]
[1772317139546,0.5525894,1965.4,1965.0,1.78906501]
[1772317139940,0.002,1965.2,1965.0,1.78906501]
[1772317141048,0.002,1965.2,1965.0,1.27221439]
[1772317141755,0.002,1965.2,1964.9,1.78918]
[1772317142055,0.002,1965.2,1965.0,0.51685062]
[1772317142833,0.002,1965.5,1965.1,0.51685062]
[1772317143554,0.002,1965.5,1965.3,0.51685062]
[1772317143757,0.002,1965.6,1965.3,0.51685062]
[1772317144142,0.002,1965.8,1965.4,0.51685062]
[1772317144338,0.006,1965.8,1965.4,0.51685062]
[1772317145038,0.00200001,1965.9,1965.5,0.51685062]
[1772317145645,0.00200001,1965.9,1965.7,0.51685062]
[1772317146328,0.00200001,1965.9,1965.6,1.27187627]
[1772317146329,0.00600001,1965.9,1965.6,1.27187627]
[1772317146532,0.004,1965.8,1965.6,1.27187627]
[1772317147237,0.004,1965.8,1965.5,1.78875646]
[1772317147735,0.004,1965.7,1965.5,1.78875646]
[1772317148536,0.004,1965.7,1965.6,0.51685062]
[1772317149868,0.5565894,1965.7,1965.2,1.78893868]
[1772317150216,0.004,1965.6,1965.2,1.78893868]
[1772317151349,0.004,1965.5,1965.2,1.78893868]
[1772317152070,0.004,1965.5,1965.1,6.5695406]
[1772317152071,0.5565894,1965.5,1965.1,0.001]
[1772317152864,0.5565894,1965.5,1965.1,1.27319914]
[1772317153234,0.5565894,1965.5,1965.1,0.001]
[1772317153851,0.5525894,1965.3,1964.8,1.27339413]
[1772317154779,0.5525894,1965.1,1964.8,0.001]
[1772317156168,0.5525894,1965.4,1964.8,0.51785062]
[1772317156377,0.5126832,1965.3,1964.8,0.001]
[1772317156876,0.5156832,1965.2,1964.8,0.51137058]
[1772317157070,0.5126832,1965.2,1964.8,0.51137058]
[1772317158099,0.5126832,1965.2,1964.9,1.27232938]
[1772317158265,0.003,1965.1,1964.8,0.001]
[1772317158587,0.003,1965.1,1964.7,0.001]
[1772317158588,0.5126832,1965.0,1964.5,1.2735826]
[1772317158788,0.5156832,1965.0,1964.5,1.2735826]
[1772317159555,0.5156832,1965.0,1964.5,0.001]
[1772317159755,0.5156832,1965.0,1964.5,1.27357294]
[1772317159970,0.5156832,1965.0,1964.5,1.78394352]
[1772317160259,0.5156832,1965.0,1964.5,1.27357294]
[1772317160459,0.5126832,1964.9,1964.4,0.001]
[1772317161650,0.5126832,1964.9,1964.4,1.78402337]
[1772317162253,0.5126832,1965.1,1964.5,0.51037058]
[1772317162458,0.003,1965.1,1964.6,0.51037058]
[1772317162981,0.5146832,1965.7,1964.9,0.51037058]
[1772317164277,0.003,1965.6,1965.1,0.51037058]
[1772317164584,0.5156832,1965.6,1964.9,1.78265756]
[1772317164779,0.002,1965.2,1964.9,1.78265756]
[1772317166082,0.002,1965.2,1965.0,0.51037058]
[1772317166583,0.002,1965.2,1965.1,1.27219988]
[1772317166963,0.002,1965.2,1965.1,1.78257046]
[1772317169396,0.002,1965.2,1965.1,1.27219988]
[1772317170700,0.002,1965.2,1965.0,5.0890294]
[1772317172778,0.002,1965.2,1965.0,5.59939998]
[1772317173197,0.002,1965.2,1965.0,5.0890294]
[1772317173495,0.005,1965.2,1965.0,5.59939998]
[1772317175091,0.005,1965.2,1964.4,5.09158803]
[1772317175092,0.5126832,1965.1,1964.4,0.001]
[1772317175401,0.5126832,1964.8,1964.4,0.001]
[1772317176602,0.003,1964.7,1964.4,0.51137058]
[1772317176778,0.5156832,1964.9,1964.4,0.001]
[1772317178404,0.5156832,1964.9,1964.8,0.001]
[1772317178905,0.5126832,1964.9,1964.4,0.001]
[1772317179206,0.5146832,1964.8,1964.4,0.001]
[1772317179703,0.5146832,1964.7,1964.4,0.001]
[1772317180107,0.5146832,1964.6,1964.4,0.001]
[1772317180404,0.5126832,1964.6,1964.4,0.001]
[1772317182802,0.5146832,1964.6,1964.4,0.001]
[1772317184598,0.5146832,1964.5,1964.0,0.001]
[1772317184905,0.5126832,1964.5,1964.0,1.27390716]
[1772317185602,0.002,1964.4,1964.0,1.79212508]
[1772317186312,0.5126832,1964.5,1964.0,1.79212508]
[1772317186607,0.002,1964.4,1964.0,1.79212508]
[1772317187307,1.27242081,1964.8,1964.2,0.50545272]
[1772317187308,0.50576579,1964.8,1964.2,0.50545272]
[1772317187606,0.002,1964.7,1964.2,0.50545272]
[1772317187902,0.002,1964.7,1964.3,1.77817073]
[1772317188813,0.002,1964.7,1964.4,0.50545272]
[1772317190120,0.002,1964.7,1964.5,1.27258844]
[1772317190517,0.002,1964.6,1964.5,1.27258844]
[1772317190683,0.50776579,1964.8,1964.3,1.27367163]
[1772317191012,0.50576579,1964.6,1964.3,1.27367163]
[1772317192991,0.50576579,1964.6,1964.3,0.001]
[1772317194614,0.002,1964.8,1964.3,0.001]
[1772317194615,0.002,1964.5,1964.3,0.50645272]
[1772317194815,0.002,1964.7,1964.3,0.50645272]
[1772317195253,0.002,1964.7,1964.4,1.27265322]
[1772317195417,0.50776579,1964.7,1964.4,1.27265322]
[1772317195887,0.002,1964.6,1964.4,1.77810594]
[1772317196088,0.50576579,1964.9,1964.4,1.77810594]
[1772317196800,0.50576579,1964.9,1964.5,0.50545272]
[1772317197119,1.124,1965.0,1964.5,0.50545272]
[1772317197120,1.62976579,1965.0,1964.5,0.50545272]
[1772317197289,1.62976579,1965.0,1964.6,1.27252366]
[1772317197488,1.62976579,1965.0,1964.6,1.77797638]
[1772317198815,0.50576579,1965.0,1964.6,1.77797638]
[1772317201897,0.002,1964.9,1964.6,1.77797638]
[1772317203113,0.002,1964.9,1964.3,0.001]
[1772317203114,0.50576579,1964.8,1964.3,1.77912726]
[1772317203310,0.50576579,1964.8,1964.4,0.50545272]
[1772317203707,0.50576579,1964.8,1964.3,1.27367454]
[1772317204028,0.50576579,1964.8,1964.3,1.77912726]
[1772317204639,0.002,1964.9,1964.5,0.50545272]
[1772317204797,0.002,1965.0,1964.6,0.50545272]
[1772317205202,0.825,1965.5,1964.6,0.50545272]
[1772317205203,0.50576579,1965.6,1965.0,0.50545272]
[1772317207240,0.50576579,1965.6,1965.1,1.27219988]
[1772317207421,0.50576579,1965.6,1965.2,0.50545272]
[1772317208259,0.50576579,1965.6,1964.9,3.28574642]
[1772317208260,1.27188108,1965.6,1964.9,3.28574642]
[1772317208528,0.50576579,1965.5,1964.9,1.77774642]
[1772317209416,0.50576579,1965.4,1964.9,1.2722937]
[1772317210328,0.50576579,1965.4,1964.9,1.77774642]
[1772317211429,0.50576579,1965.3,1964.9,1.77774642]
[1772317211616,0.50576579,1965.3,1964.8,1.27234666]
[1772317212134,5.08790057,1965.5,1964.9,0.50545272]
[1772317212135,0.50576579,1965.5,1964.9,0.50545272]
[1772317213227,0.50776579,1965.7,1964.9,1.509]
[1772317213445,0.002,1965.8,1965.3,0.50545272]
[1772317213735,0.002,1965.8,1965.4,0.50545272]
[1772317214139,1e-08,1966.0,1965.5,0.50545272]
[1772317214813,1e-08,1966.0,1965.7,0.50545272]
[1772317215013,1e-08,1966.0,1965.8,0.50545272]
[1772317215424,1e-08,1966.0,1965.9,1.7771349]
[1772317217938,10.15,1967.0,1966.0,0.53051004]
[1772317218127,0.55558546,1967.0,1966.0,0.53051004]
[1772317218332,0.55558546,1967.0,1966.2,0.53051004]
[1772317219138,2.94547608,1967.2,1966.2,0.53051004]
[1772317219336,0.55558546,1967.1,1966.2,0.53051004]
[1772317220410,1.82655648,1967.0,1966.3,1.80193352]
[1772317220617,0.55558546,1966.9,1966.1,1.80206028]
[1772317221718,1.82651665,1967.1,1966.2,0.53051004]
[1772317222126,0.55558546,1967.0,1966.2,0.53051004]
[1772317222626,1.82662109,1966.9,1966.2,1.80195712]
[1772317222949,0.55558546,1966.8,1966.2,1.80199324]
[1772317223320,0.55558546,1966.8,1966.3,0.53051004]
[1772317223548,1.27103563,1966.9,1966.3,0.53051004]
[1772317224046,1.82662109,1966.9,1966.3,0.53051004]
[1772317224447,0.55558546,1966.8,1965.7,1.80228629]
[1772317224640,0.55558546,1966.6,1965.8,0.53051004]
[1772317226347,0.55558546,1966.6,1965.7,1.80228629]
[1772317226549,0.55558546,1966.6,1965.8,0.53051004]
[1772317227033,1.27129417,1966.5,1965.9,0.001]
[1772317227344,0.55558546,1966.4,1965.9,0.001]
[1772317229219,1.82700894,1966.3,1965.9,0.001]
[1772317230229,0.55558546,1966.2,1965.9,0.001]
[1772317230639,5.08569394,1966.4,1965.9,0.001]
[1772317230640,2.94499446,1966.4,1965.9,0.001]
[1772317231114,1.82699446,1966.4,1965.9,0.001]
[1772317231316,1.27333143,1966.5,1965.9,0.53151004]
[1772317231542,0.002,1966.5,1965.9,0.53151004]
[1772317233148,0.002,1966.5,1966.1,0.53051004]
[1772317233847,0.002,1966.6,1966.2,0.53051004]
[1772317235356,0.002,1966.6,1966.3,1.80193352]
[1772317237048,0.002,1966.6,1966.2,1.27143798]
[1772317237249,0.002,1966.6,1966.2,1.80194802]
[1772317237454,0.002,1966.6,1966.3,0.53051004]
[1772317239546,0.002,1966.6,1966.3,1.80188186]
[1772317240130,0.002,1966.6,1966.3,0.53051004]
[1772317240860,0.002,1966.6,1966.2,1.80195241]
[1772317241059,0.002,1966.5,1966.2,1.80195241]
[1772317242066,0.55758546,1966.5,1966.0,0.001]
[1772317242246,0.04139041,1967.0,1966.2,0.57222086]
[1772317242629,0.04228982,1967.0,1966.2,0.57222086]
[1772317243351,1.31326783,1967.0,1966.2,0.57222086]
[1772317243549,0.00178953,1966.9,1966.2,0.57222086]
[1772317244062,0.00178953,1966.9,1966.3,1.84364434]
[1772317244550,0.00178953,1966.9,1966.4,0.57222086]
[1772317245071,1.31236842,1967.0,1966.4,0.57222086]
[1772317245072,0.04139041,1967.0,1966.4,0.57222086]
[1772317246570,0.04139041,1967.0,1966.5,1.84351503]
[1772317246772,0.00354635,1967.1,1966.5,1.84351503]
[1772317247340,0.00611169,1967.0,1966.5,0.57222086]
[1772317247546,0.00611169,1967.0,1966.4,0.57222086]
[1772317248564,0.00611169,1967.0,1966.5,1.84351503]
[1772317249565,1.12157296,1967.2,1966.6,0.57222086]
[1772317249771,2.39243511,1967.2,1966.6,0.57222086]
[1772317250370,0.00857296,1967.1,1966.6,0.57222086]
[1772317250778,1.27951171,1967.1,1966.6,0.57222086]
[1772317251568,0.01018062,1967.0,1966.4,1.84354673]
[1772317251867,0.01018062,1967.0,1966.4,0.57222086]
[1772317252067,0.01018062,1967.0,1966.2,1.84368223]
[1772317252469,0.01018062,1967.0,1966.3,0.57222086]
[1772317252969,0.0109639,1966.9,1966.5,0.001]
[1772317253153,0.0129639,1966.9,1966.5,0.001]
[1772317253355,0.002,1966.9,1966.5,0.57322086]
[1772317254974,0.002,1966.9,1966.6,1.27122953]
[1772317255145,0.002,1966.9,1966.6,1.84345039]
[1772317259180,0.01548989,1966.8,1966.5,0.001]
[1772317259550,1.28661142,1966.8,1966.5,0.001]
[1772317260379,0.01521356,1966.6,1966.2,0.001]
[1772317261855,0.016639,1966.4,1966.2,0.001]
[1772317262686,1.28843816,1966.8,1966.2,0.57372086]
[1772317262987,1.114,1966.7,1966.2,0.57372086]
[1772317263350,0.0173379,1966.8,1966.2,0.57372086]
[1772317264081,2.38708617,1966.9,1966.4,0.57272086]
[1772317265280,2.40580707,1966.9,1966.4,0.57272086]
[1772317266672,2.40580707,1966.9,1966.3,1.27142348]
[1772317266673,0.02006552,1966.8,1966.3,1.27142348]
[1772317267183,0.02006552,1966.8,1966.3,1.84414434]
[1772317267353,0.02006552,1966.8,1966.3,1.84514434]
[1772317267650,0.002,1966.9,1966.5,0.57172086]
[1772317267856,0.002,1966.7,1966.5,0.57172086]
[1772317268787,0.002,1966.7,1966.6,0.57172086]
[1772317269285,0.002,1966.7,1966.4,1.84307163]
[1772317269474,0.002,1966.7,1966.5,0.57172086]
[1772317272094,0.002,1966.9,1966.6,0.57172086]
[1772317272792,0.002,1966.9,1966.4,6.89635037]
[1772317272793,0.02592743,1967.9,1967.0,0.57172086]
[1772317272964,0.02592743,1967.4,1966.8,0.57172086]
[1772317273165,0.824,1967.5,1966.8,0.57172086]
[1772317273363,0.02592743,1967.4,1966.6,0.824]
[1772317273562,0.02654783,1967.3,1966.7,0.57172086]
[1772317273789,0.02654783,1967.2,1966.7,0.57172086]
[1772317273959,0.86068833,1967.3,1966.7,0.57172086]
[1772317274160,1.27090641,1967.1,1966.7,0.57172086]
[1772317274492,0.03668833,1967.2,1966.8,0.57172086]
[1772317274686,2.38562106,1967.6,1966.9,0.57172086]
[1772317274893,0.03668833,1967.4,1966.9,0.57172086]
[1772317275384,0.03668833,1967.3,1966.9,0.57172086]
[1772317275586,0.03668833,1967.5,1966.9,0.57172086]
[1772317276269,0.02774492,1967.4,1966.8,0.57172086]
[1772317276788,0.02774492,1967.4,1966.8,1.84281346]
[1772317277168,0.03668833,1967.3,1966.8,1.84281346]
[1772317277371,0.03668833,1967.3,1966.9,0.57172086]
[1772317278082,0.03668833,1967.2,1966.9,0.57172086]
[1772317278292,0.03668833,1967.5,1967.0,1.84269188]
[1772317278489,0.02950627,1967.4,1966.8,0.57172086]
[1772317279186,0.002,1967.2,1966.8,0.57172086]
[1772317280202,0.002,1967.2,1966.9,0.57172086]
[1772317282803,0.002,1967.2,1967.0,0.57172086]
[1772317282997,0.03868833,1967.2,1967.0,0.57172086]
[1772317283205,0.002,1967.2,1967.0,0.57172086]
[1772317283900,0.002,1967.3,1967.1,0.57072086]
[1772317285599,0.002,1967.3,1967.2,1.84156266]
[1772317285773,0.002,1967.3,1967.2,0.57072086]
[1772317287581,0.002,1967.3,1967.2,1.84156266]
[1772317288406,0.002,1967.5,1967.3,0.57072086]
[1772317288601,0.03868833,1967.5,1967.3,0.57072086]
[1772317288900,0.03642877,1967.9,1967.4,0.55137669]
[1772317289073,1.30682834,1967.9,1967.4,0.55137669]
[1772317289273,1.30682834,1967.9,1967.2,2.7878418]
[1772317289274,0.07614031,1967.8,1967.2,3.33921849]
[1772317289487,0.07667442,1967.5,1966.8,3.33945619]
[1772317289803,0.07667442,1967.5,1966.9,0.55137669]
[1772317291504,1.27058345,1967.6,1966.9,0.55137669]
[1772317291682,1.34829446,1967.7,1967.1,0.55137669]
[1772317294013,1.34829446,1967.7,1967.1,1.82224831]
[1772317294808,1.34829446,1967.7,1967.1,0.55137669]
[1772317295008,1.34829446,1967.7,1967.1,1.82224836]
[1772317295177,1.34829446,1967.7,1967.1,0.55137669]
[1772317295821,0.6795696,1967.7,1967.1,0.55137669]
[1772317295995,0.6795696,1967.7,1967.0,0.001]
[1772317295996,2.84194806,1968.7,1967.8,0.54614696]
[1772317296198,0.004,1968.6,1967.8,0.54614696]
[1772317296397,0.57604496,1968.6,1967.8,0.54614696]
[1772317296811,0.004,1968.5,1967.8,0.54614696]
[1772317296987,0.57604496,1968.5,1967.5,0.54614696]
[1772317297188,0.57204496,1968.3,1967.5,0.54614696]
[1772317297487,1.69404496,1968.2,1967.5,0.54614696]
[1772317298003,1.27026065,1968.1,1967.5,1.81673982]
[1772317298194,1.27026065,1968.1,1967.5,0.54614696]
[1772317298387,0.57604496,1968.0,1967.3,0.54614696]
[1772317298588,0.57604496,1968.0,1967.4,0.54614696]
[1772317299212,0.57204496,1968.6,1967.8,0.54614696]
[1772317299416,0.57204496,1968.6,1967.6,0.54614696]
[1772317300091,2.26990711,1968.7,1967.5,1.527]
[1772317300092,1.27006705,1968.4,1967.7,1.81666583]
[1772317300293,1.84211201,1968.4,1967.7,0.54614696]
[1772317300513,0.57204496,1968.3,1967.7,0.54614696]
[1772317300816,0.57204496,1968.3,1967.5,2.07314696]
[1772317301429,0.57204496,1968.3,1967.5,0.54614696]
[1772317301625,0.57204496,1968.2,1967.3,0.54614696]
[1772317302121,0.57204496,1968.0,1967.3,0.54614696]
[1772317302319,0.57204496,1967.9,1967.3,0.54614696]
[1772317303017,0.57204496,1967.9,1967.1,0.54614696]
[1772317303733,0.57204496,1967.9,1967.0,0.001]
[1772317303942,0.57204496,1967.8,1967.0,0.001]
[1772317304087,0.57204496,1967.6,1967.0,0.001]
[1772317306602,1.27064803,1967.5,1967.0,0.001]
[1772317306993,1.27064803,1967.5,1967.1,0.001]
[1772317307620,0.5841062,1967.3,1966.9,0.001]
[1772317307793,0.5841062,1967.3,1966.7,0.001]
[1772317308286,1.7061062,1967.2,1966.4,0.55737397]
[1772317308486,0.5841062,1967.1,1966.4,0.55737397]
[1772317308736,0.5841062,1966.9,1966.3,0.001]
[1772317309386,0.5841062,1966.9,1966.3,1.27242148]
[1772317309591,0.5841062,1966.9,1966.3,0.001]
[1772317310401,0.5841062,1966.9,1966.3,1.27241016]
[1772317311706,1.27110026,1966.8,1966.3,1.27241016]
[1772317312222,1.85519198,1966.9,1966.3,1.27241016]
[1772317312398,2.97619198,1966.9,1966.3,1.27241016]
[1772317312738,1.27108578,1966.9,1966.4,0.55737397]
[1772317313017,0.5841062,1967.3,1966.5,0.55737397]
[1772317313602,0.5841062,1967.3,1966.3,0.55837397]
[1772317313803,0.5841062,1967.2,1966.4,1.82873279]
[1772317314118,0.5841062,1967.1,1966.4,1.82873279]
[1772317315239,1.121,1967.2,1966.5,0.55737397]
[1772317315524,1.7051062,1967.2,1966.5,0.55737397]
[1772317316915,1.85495595,1967.2,1966.6,1.27122953]
[1772317317120,2.97495595,1967.2,1966.6,1.27122953]
[1772317317828,1.7041062,1967.2,1966.6,1.8286035]
[1772317318031,2.97496536,1967.2,1966.6,1.8286035]
[1772317319109,0.5841062,1967.1,1966.4,1.82868455]
[1772317319318,0.5841062,1967.1,1966.3,1.8297676]
[1772317319644,0.5841062,1967.1,1966.6,0.001]
[1772317320001,0.5841062,1967.1,1966.5,0.001]
[1772317320823,0.5841062,1966.9,1966.5,0.001]
[1772317321231,0.5841062,1966.7,1966.5,0.001]
[1772317321459,0.5841062,1966.7,1966.2,0.001]
[1772317322105,1.7061062,1966.6,1966.2,0.001]
[1772317322702,0.002,1967.2,1966.2,0.55837397]
[1772317322903,0.5841062,1966.9,1966.2,0.55837397]
[1772317323337,1.85519829,1966.9,1966.2,0.55837397]
[1772317323520,0.5841062,1966.8,1966.2,1.27246264]
[1772317324040,0.5841062,1966.8,1966.2,0.001]
[1772317324510,0.5841062,1966.8,1966.2,1.27247548]
[1772317325014,1.7061062,1966.8,1966.2,1.27247548]
[1772317325235,0.5841062,1966.7,1966.2,1.27247548]
[1772317325534,1.85527506,1966.7,1966.2,0.001]
[1772317325909,0.5841062,1966.6,1966.2,0.001]
[1772317326718,0.5841062,1967.0,1966.2,0.55837397]
[1772317326924,1.7061062,1967.0,1966.2,0.55837397]
[1772317327123,0.5841062,1967.0,1966.2,0.55837397]
[1772317327451,1.122,1967.1,1966.2,0.55837397]
[1772317327651,2.39292362,1967.1,1966.4,0.55737397]
[1772317327835,1.27092362,1967.1,1966.4,0.55737397]
[1772317328033,1.122,1967.1,1966.4,0.55737397]
[1772317329555,2.39291066,1967.1,1966.5,1.82866814]
[1772317330122,2.39291066,1967.1,1966.5,1.27129417]
[1772317330321,1.27091066,1967.1,1966.6,0.55737397]
[1772317330554,1.121,1967.1,1966.6,0.55737397]
[1772317331963,5.08436286,1967.6,1967.1,0.55737397]
[1772317331964,0.002,1967.6,1967.1,0.55737397]
[1772317332133,2.51056011,1968.4,1966.4,5.08518468]
[1772317332134,0.0313102,1968.1,1967.4,0.55737397]
[1772317332459,0.6154164,1968.1,1966.9,0.55737397]
[1772317332621,0.0313102,1968.0,1966.9,0.55737397]
[1772317333521,0.0313102,1968.0,1966.7,3.42492773]
[1772317333522,0.6154164,1968.0,1967.1,0.55737397]
[1772317334033,0.0313102,1968.0,1967.4,0.55737397]
[1772317334438,0.02683543,1968.0,1967.4,0.55737397]
[1772317334750,0.02683543,1968.0,1967.5,0.55737397]
[1772317334961,0.824,1968.5,1967.5,0.55737397]
[1772317335145,0.85083543,1968.5,1967.5,0.55737397]
[1772317335344,1.43494163,1968.5,1967.5,0.55737397]
[1772317335584,0.065536,1969.1,1968.5,0.55737397]
[1772317335725,0.02539784,1969.7,1968.9,0.55737397]
[1772317335924,1.02683543,1969.6,1969.1,0.55737397]
[1772317336229,0.58274523,1970.3,1969.0,1.26968004]
[1772317336230,0.58274523,1970.3,1969.7,0.55737397]
[1772317336429,0.35542064,1971.0,1969.4,2.53539173]
[1772317336430,1.62382104,1971.0,1969.9,0.59743692]
[1772317336768,1.62382186,1971.0,1969.9,0.59743692]
[1772317336922,2.53539173,1970.7,1969.4,0.59743692]
[1772317337226,1.125,1970.9,1969.4,0.59743692]
[1772317337227,0.59881696,1970.9,1969.4,0.59743692]
[1772317337426,1.62382186,1971.0,1969.8,0.59743692]
[1772317337427,0.35542064,1971.0,1969.8,0.59743692]
[1772317337665,2.02355827,1971.2,1970.0,0.59743692]
[1772317337956,2.02355827,1971.2,1970.2,0.59743692]
[1772317337957,0.1564711,1971.2,1970.2,0.59743692]
[1772317338164,0.59881696,1972.2,1970.4,0.59743692]
[1772317338165,0.59881696,1971.7,1970.4,0.59743692]
[1772317338375,0.59881696,1972.0,1970.4,0.59743692]
[1772317338665,0.59881696,1971.5,1970.4,0.59743692]
[1772317339087,3.13420869,1971.2,1970.1,0.59743692]
[1772317339354,3.13420869,1970.9,1969.8,0.59743692]
[1772317339748,0.59881696,1970.9,1969.8,0.59743692]
[1772317340136,1.26852039,1970.8,1970.0,0.57565128]
[1772317340452,7.60860278,1971.2,1970.0,0.57565128]
[1772317340453,1.125,1971.0,1970.0,0.57565128]
[1772317340777,2.39330483,1971.2,1970.0,0.57565128]
[1772317340935,1.26830483,1971.2,1970.2,0.59743692]
[1772317341263,1.86712179,1971.2,1970.2,0.59743692]
[1772317341470,0.59881696,1970.9,1969.7,2.59283901]
[1772317341628,0.59881696,1970.8,1969.8,0.59743692]
[1772317341832,0.59881696,1971.1,1969.8,0.59743692]
[1772317342060,0.59881696,1971.1,1969.8,1.86654554]
[1772317342061,1.86720863,1971.0,1969.8,1.86654554]
[1772317342276,1.86698557,1971.4,1970.2,0.59743692]
[1772317343165,1.86696198,1971.4,1970.4,0.59743692]
[1772317344179,1.86696198,1971.4,1970.4,1.86618291]
[1772317344353,1.86696198,1971.4,1970.5,0.59743692]
[1772317345647,1.86696198,1971.4,1970.2,0.59743692]
[1772317345648,0.59881696,1971.3,1970.2,0.59743692]
[1772317345861,1.127,1971.2,1970.2,0.59743692]
[1772317346055,1.72581696,1971.2,1970.2,0.59743692]
[1772317346260,2.39532732,1971.1,1970.2,0.59743692]
[1772317347032,0.59881696,1971.0,1970.2,0.59743692]
[1772317347261,0.59881696,1971.0,1969.9,0.59743692]
[1772317347448,4.93071905,1971.1,1970.0,0.59743692]
[1772317347449,2.39532732,1971.1,1970.0,0.59743692]
[1772317347656,1.26832732,1971.1,1970.0,0.59843692]
[1772317347834,1.26830281,1971.2,1970.2,0.59743692]
[1772317348165,0.002,1971.3,1970.4,0.59743692]
[1772317350165,0.59881696,1971.2,1970.1,0.59743692]
[1772317350671,0.59881696,1971.0,1970.1,0.59743692]
[1772317350840,0.59881696,1971.0,1970.0,0.001]
[1772317351042,0.59881696,1971.0,1970.0,1.86745865]
[1772317351356,1.126,1970.9,1970.0,0.59843692]
[1772317351734,0.59881696,1970.8,1970.0,0.59843692]
[1772317351936,0.59881696,1970.8,1970.0,0.001]
[1772317352565,1.26858476,1970.7,1970.0,0.001]
[1772317352752,2.39358476,1970.7,1970.0,0.001]
[1772317352932,2.39358476,1970.7,1970.0,0.59843692]
[1772317353258,0.59881696,1970.6,1969.8,0.001]